fUST/lending_fUST_20250119
["ID","MTS","AMOUNT","RATE_DAILY","PERIOD"]
[349507598,1737239438795,-500.0,0.00021917,3]
[349507599,1737239438805,-500.0,0.00021917,3]
[349507600,1737239438817,-500.0,0.00021917,3]
[349507601,1737239438827,-272.23234474,0.00021917,3]
[349507602,1737239438837,-500.0,0.00021917,3]
[349507603,1737239438847,-500.0,0.00021917,3]
[349507604,1737239438856,-507.98885058,0.00021917,3]
[349507605,1737239438865,-500.0,0.00021917,3]
[349507606,1737239438875,-500.0,0.00021917,3]
[349507607,1737239438885,-500.0,0.00021917,3]
[349507608,1737239438895,-500.0,0.00021917,3]
[349507609,1737239438904,-500.0,0.00021917,3]
[349507610,1737239438913,-500.0,0.00021917,3]
[349507611,1737239438923,-500.0,0.00021917,3]
[349507612,1737239438933,-500.0,0.00021917,3]
[349507613,1737239438942,-500.0,0.00021917,3]
[349507614,1737239438952,-500.0,0.00021917,3]
[349507615,1737239438962,-500.0,0.00021917,3]
[349507616,1737239438971,-500.0,0.00021917,3]
[349507617,1737239438981,-500.0,0.00021917,3]
[349507618,1737239438991,-500.0,0.00021917,3]
[349507619,1737239439000,-500.0,0.00021917,3]
[349507620,1737239439010,-500.0,0.00021917,3]
[349507621,1737239439020,-500.0,0.00021917,3]
[349507622,1737239439030,-500.0,0.00021917,3]
[349507623,1737239439039,-500.0,0.00021917,3]
[349507624,1737239439050,-500.0,0.00021917,3]
[349507625,1737239439060,-177.9735931,0.00021917,3]
[349507626,1737239439069,-500.0,0.00021917,3]
[349507627,1737239439079,-584.04801945,0.00021917,3]
[349507628,1737239439088,-500.0,0.00021917,3]
[349507629,1737239439098,-500.0,0.00021917,3]
[349507630,1737239439107,-500.0,0.00021917,3]
[349507631,1737239439116,-500.0,0.00021917,3]
[349507632,1737239439128,-500.0,0.00021917,3]
[349507633,1737239439139,-500.0,0.00021917,3]
[349507634,1737239439149,-550.76,0.00021917,3]
[349507635,1737239439158,-514.56902901,0.00021917,3]
[349507636,1737239439167,-500.0,0.00021917,3]
[349507637,1737239439178,-500.0,0.00021917,3]
[349507638,1737239439187,-499.85445729,0.00021917,3]
[349507639,1737239439197,-500.0,0.00021917,3]
[349507640,1737239439206,-500.0,0.00021917,3]
[349507641,1737239439216,-500.0,0.00021917,3]
[349507642,1737239439226,-500.0,0.00021917,3]
[349507643,1737239439235,-500.0,0.00021917,3]
[349507644,1737239439245,-528.45,0.00021917,3]
[349507645,1737239439254,-500.0,0.00021917,3]
[349507646,1737239439264,-500.0,0.00021917,3]
[349507647,1737239439274,-500.0,0.00021917,3]
[349507648,1737239439284,-500.0,0.00021917,3]
[349507649,1737239439293,-500.0,0.00021917,3]
[349507650,1737239439303,-500.0,0.00021917,3]
[349507651,1737239439312,-500.0,0.00021917,3]
[349507652,1737239439322,-500.0,0.00021917,3]
[349507653,1737239439332,-500.0,0.00021917,3]
[349507654,1737239439341,-500.0,0.00021917,3]
[349507655,1737239439350,-500.0,0.00021917,3]
[349507656,1737239439359,-500.0,0.00021917,3]
[349507657,1737239439369,-500.0,0.00021917,3]
[349507658,1737239439378,-500.0,0.00021917,3]
[349507659,1737239439388,-531.69,0.00021917,3]
[349507660,1737239439397,-500.0,0.00021917,3]
[349507661,1737239439407,-500.0,0.00021917,3]
[349507662,1737239439417,-500.0,0.00021917,3]
[349507663,1737239439427,-583.35,0.00021917,3]
[349507664,1737239439436,-500.0,0.00021917,3]
[349507665,1737239439446,-555.14,0.00021917,3]
[349507666,1737239439456,-500.0,0.00021917,3]
[349507667,1737239439466,-554.55,0.00021917,3]
[349507668,1737239439476,-500.0,0.00021917,3]
[349507669,1737239439485,-508.17797233,0.00021917,3]
[349507670,1737239439494,-500.0,0.00021917,3]
[349507671,1737239439504,-500.0,0.00021917,3]
[349507672,1737239439513,-500.0,0.00021917,3]
[349507673,1737239439523,-500.0,0.00021917,3]
[349507674,1737239439532,-500.0,0.00021917,3]
[349507675,1737239439541,-386.93858006,0.00021917,3]
[349507676,1737239439620,-234.13141994,0.00021917,3]
[349507677,1737239439629,-500.0,0.00021917,3]
[349507678,1737239439638,-500.0,0.00021917,3]
[349507679,1737239439648,-500.0,0.00021917,3]
[349507680,1737239439658,-500.0,0.00021917,3]
[349507681,1737239439667,-500.0,0.00021917,3]
[349507682,1737239439677,-527.5,0.00021917,3]
[349507683,1737239439686,-500.0,0.00021917,3]
[349507684,1737239439696,-500.0,0.00021917,3]
[349507685,1737239439705,-482.44863645,0.00021917,3]
[349507686,1737239439717,-17.55136355,0.00021917,3]
[349507687,1737239439727,-500.0,0.00021917,3]
[349507688,1737239439737,-193.79126328,0.00021917,3]
[349507689,1737239439748,-306.20873672,0.00021917,3]
[349507690,1737239439760,-369.09846632,0.00021917,3]
[349507698,1737239440554,-130.90153368,0.00021917,3]
[349507699,1737239440564,-222.22629812,0.00021917,3]
[349507700,1737239440575,-277.77370188,0.00021917,3]
[349507701,1737239440584,-123.5841829,0.00021917,3]
[349507708,1737239443446,-61.16472306,0.00021917,3]
[349507710,1737239446497,-315.25109404,0.00021917,3]
[349507711,1737239446507,-220.29579346,0.00021917,3]
[349507713,1737239610783,160.0,0.00023544,120]
[349507714,1737239670759,160.0,0.00022843,120]
[349507715,1737239776110,166.975732,0.00013973,2]
[349507716,1737239850769,160.0,0.00023618,120]
[349507726,1737240330767,160.0,0.00023779,120]
[349507727,1737240448141,-300.0,0.00019769,2]
[349507728,1737240448166,-139.88276152,0.0001977,2]
[349507732,1737240570766,160.0,0.00023503,120]
[349507733,1737240587039,159.89239171,0.0001967,2]
[349507739,1737240632689,-300.0,0.00019769,2]
[349507740,1737240632699,-21470.25282544,0.0001977,2]
[349507741,1737240632711,-1484.26595794,0.0001977,2]
[349507742,1737240632720,-311.4545302,0.00020179,2]
[349507743,1737240632729,-500.0,0.0002018,2]
[349507744,1737240632738,-389.358,0.000209,2]
[349507745,1737240632747,-30893.49358666,0.00021,2]
[349507746,1737240632756,-156.64798379,0.00021431,2]
[349507747,1737240632765,-420.0,0.00021531,2]
[349507748,1737240632774,-761.06764538,0.00021679,2]
[349507749,1737240632783,-1246.86861037,0.0002173,2]
[349507750,1737240632792,-154.51,0.00021817,2]
[349507751,1737240632801,-182.32714222,0.00021817,2]
[349507752,1737240632810,-151.0,0.000219,4]
[349507753,1737240632819,-151.0,0.000219,4]
[349507754,1737240632828,-215.61608574,0.000219,3]
[349507755,1737240632837,-8611.71882547,0.00021917,5]
[349507756,1737240632848,-551.656765,0.00021917,5]
[349507757,1737240632859,-429.14,0.00021917,5]
[349507765,1737240638574,-18854.72686229,0.00021917,5]
[349507766,1737240638584,-100.63781616,0.00021917,5]
[349507767,1737240638670,-461.01068651,0.00021917,5]
[349507781,1737240643703,-2180.79598431,0.00021917,5]
[349507782,1737240643714,-502.58713836,0.00021917,3]
[349507783,1737240643724,-151.0,0.00021917,2]
[349507784,1737240643733,-151.0,0.00021917,2]
[349507785,1737240643743,-500.0,0.00021917,3]
[349507786,1737240643751,-442.2918233,0.00021917,3]
[349507792,1737240646598,-57.7081767,0.00021917,3]
[349507793,1737240646608,-500.0,0.00021917,3]
[349507794,1737240646618,-397.14613561,0.00021917,3]
[349507795,1737240646628,-500.0,0.00021917,3]
[349507797,1737240646638,-500.0,0.00021917,3]
[349507798,1737240646646,-619.24,0.00021917,3]
[349507799,1737240646654,-500.0,0.00021917,3]
[349507800,1737240646664,-500.0,0.00021917,3]
[349507801,1737240646673,-503.33403478,0.00021917,3]
[349507802,1737240646682,-281.64063764,0.00021917,3]
[349507803,1737240646691,-500.0,0.00021917,3]
[349507804,1737240646700,-500.0,0.00021917,3]
[349507805,1737240646709,-500.0,0.00021917,3]
[349507806,1737240646718,-500.0,0.00021917,3]
[349507807,1737240646726,-500.0,0.00021917,3]
[349507808,1737240646735,-500.0,0.00021917,3]
[349507809,1737240646744,-500.0,0.00021917,3]
[349507810,1737240646753,-500.0,0.00021917,3]
[349507811,1737240646762,-500.0,0.00021917,3]
[349507812,1737240646771,-500.0,0.00021917,3]
[349507813,1737240646780,-305.67029914,0.00021917,3]
[349507814,1737240646789,-500.0,0.00021917,3]
[349507815,1737240646798,-500.0,0.00021917,3]
[349507816,1737240646807,-500.0,0.00021917,3]
[349507817,1737240646815,-500.0,0.00021917,3]
[349507818,1737240646825,-500.0,0.00021917,3]
[349507819,1737240646834,-151.0,0.00021917,2]
[349507820,1737240646843,-151.0,0.00021917,2]
[349507821,1737240646853,-292.25157072,0.00021917,3]
[349507822,1737240646862,-500.0,0.00021917,3]
[349507823,1737240646871,-500.0,0.00021917,3]
[349507824,1737240646880,-500.0,0.00021917,3]
[349507825,1737240646890,-500.0,0.00021917,3]
[349507826,1737240646899,-500.0,0.00021917,3]
[349507827,1737240646908,-151.0,0.00021917,2]
[349507828,1737240646917,-500.0,0.00021917,3]
[349507829,1737240646926,-500.0,0.00021917,3]
[349507830,1737240646935,-500.0,0.00021917,3]
[349507831,1737240646945,-500.0,0.00021917,3]
[349507832,1737240646954,-500.0,0.00021917,3]
[349507833,1737240646966,-301.40084929,0.00021917,3]
[349507834,1737240646978,-500.0,0.00021917,3]
[349507835,1737240646990,-500.0,0.00021917,3]
[349507836,1737240647002,-500.0,0.00021917,3]
[349507837,1737240647013,-151.0,0.00021917,2]
[349507838,1737240647026,-500.0,0.00021917,3]
[349507839,1737240647038,-500.0,0.00021917,3]
[349507840,1737240647048,-500.0,0.00021917,3]
[349507841,1737240647059,-500.0,0.00021917,3]
[349507842,1737240647069,-191.08,0.00021917,3]
[349507843,1737240647082,-500.0,0.00021917,3]
[349507844,1737240647094,-567.93082858,0.00021917,3]
[349507845,1737240647104,-500.0,0.00021917,3]
[349507846,1737240647115,-500.0,0.00021917,3]
[349507847,1737240647127,-500.0,0.00021917,3]
[349507848,1737240647139,-500.0,0.00021917,3]
[349507849,1737240647150,-613.45255532,0.00021917,3]
[349507850,1737240647163,-500.0,0.00021917,3]
[349507851,1737240647175,-500.0,0.00021917,3]
[349507852,1737240647187,-367.74,0.00021917,3]
[349507853,1737240647198,-500.0,0.00021917,3]
[349507854,1737240647211,-500.0,0.00021917,3]
[349507855,1737240647223,-500.0,0.00021917,3]
[349507856,1737240647235,-445.25261135,0.00021917,3]
[349507857,1737240647247,-233.02777607,0.00021917,3]
[349507858,1737240647259,-500.0,0.00021917,3]
[349507859,1737240647270,-500.0,0.00021917,3]
[349507860,1737240647281,-496.48500777,0.00021917,3]
[349507861,1737240647292,-500.0,0.00021917,3]
[349507862,1737240647304,-500.0,0.00021917,3]
[349507863,1737240647315,-500.0,0.00021917,3]
[349507864,1737240647326,-352.33601686,0.00021917,3]
[349507865,1737240647337,-500.0,0.00021917,3]
[349507866,1737240647349,-500.0,0.00021917,3]
[349507867,1737240647360,-500.0,0.00021917,3]
[349507868,1737240647372,-500.0,0.00021917,3]
[349507869,1737240647382,-500.0,0.00021917,3]
[349507870,1737240647393,-500.0,0.00021917,3]
[349507871,1737240647404,-500.0,0.00021917,3]
[349507872,1737240647415,-240.23129751,0.00021917,3]
[349507873,1737240647426,-292.23,0.00021917,3]
[349507874,1737240647436,-194.22607877,0.00021917,3]
[349507875,1737240647448,-500.0,0.00021917,3]
[349507876,1737240647459,-500.0,0.00021917,3]
[349507877,1737240647470,-504.72337228,0.00021917,3]
[349507878,1737240647480,-151.0,0.00021917,2]
[349507879,1737240647492,-151.0,0.00021917,2]
[349507880,1737240647504,-292.01217859,0.00021917,3]
[349507881,1737240647515,-583.24639814,0.00021917,3]
[349507882,1737240647526,-1936.1,0.00021917,3]
[349507883,1737240647537,-500.0,0.00021917,3]
[349507884,1737240647548,-151.0,0.00021917,2]
[349507885,1737240647559,-500.0,0.00021917,3]
[349507886,1737240647569,-500.0,0.00021917,3]
[349507887,1737240647581,-500.0,0.00021917,3]
[349507888,1737240647592,-500.0,0.00021917,3]
[349507889,1737240647602,-500.0,0.00021917,2]
[349507890,1737240647614,-152.020225,0.00021917,2]
[349507891,1737240647624,-500.0,0.00021917,3]
[349507892,1737240647636,-500.0,0.00021917,3]
[349507893,1737240647648,-526.13032312,0.00021917,3]
[349507894,1737240647659,-500.0,0.00021917,3]
[349507895,1737240647669,-500.85651321,0.00021917,3]
[349507896,1737240647679,-500.0,0.00021917,3]
[349507897,1737240647690,-500.0,0.00021917,3]
[349507898,1737240647700,-500.0,0.00021917,3]
[349507899,1737240647710,-500.0,0.00021917,3]
[349507900,1737240647720,-500.0,0.00021917,3]
[349507901,1737240647731,-151.0,0.00021917,2]
[349507902,1737240647741,-500.0,0.00021917,3]
[349507903,1737240647752,-500.0,0.00021917,3]
[349507904,1737240647764,-150.0,0.00021917,3]
[349507905,1737240647779,-500.0,0.00021917,3]
[349507906,1737240647790,-151.0,0.00021917,2]
[349507907,1737240647802,-500.0,0.00021917,3]
[349507908,1737240647812,-152.999238,0.00021917,2]
[349507909,1737240647822,-564.870165,0.00021917,2]
[349507910,1737240647832,-564.870165,0.00021917,2]
[349507911,1737240647843,-564.870165,0.00021917,2]
[349507912,1737240647854,-564.870165,0.00021917,2]
[349507913,1737240647865,-564.870165,0.00021917,2]
[349507914,1737240647876,-564.870165,0.00021917,2]
[349507915,1737240647888,-789.17,0.00021917,3]
[349507916,1737240647899,-209.48718263,0.00021917,3]
[349507917,1737240647909,-577.77,0.00021917,3]
[349507918,1737240647919,-500.0,0.00021917,3]
[349507919,1737240647930,-500.0,0.00021917,3]
[349507920,1737240647940,-151.0,0.00021917,2]
[349507921,1737240647950,-151.0,0.00021917,2]
[349507922,1737240647960,-187.19468,0.00021917,2]
[349507923,1737240647971,-500.0,0.00021917,3]
[349507924,1737240647982,-500.0,0.00021917,3]
[349507925,1737240647992,-500.0,0.00021917,3]
[349507926,1737240648003,-151.0,0.00021917,2]
[349507927,1737240648014,-151.0,0.00021917,2]
[349507928,1737240648026,-151.0,0.00021917,2]
[349507929,1737240648037,-500.0,0.00021917,3]
[349507930,1737240648048,-3123.1,0.00021917,3]
[349507931,1737240648059,-500.0,0.00021917,3]
[349507932,1737240648071,-500.0,0.00021917,3]
[349507933,1737240648082,-500.0,0.00021917,3]
[349507934,1737240648093,-500.0,0.00021917,3]
[349507935,1737240648104,-500.0,0.00021917,3]
[349507936,1737240648114,-500.0,0.00021917,3]
[349507937,1737240648126,-500.0,0.00021917,3]
[349507938,1737240648137,-151.0,0.00021917,2]
[349507939,1737240648148,-151.0,0.00021917,2]
[349507940,1737240648159,-500.0,0.00021917,3]
[349507941,1737240648176,-500.0,0.00021917,3]
[349507942,1737240648188,-550.18,0.00021917,3]
[349507943,1737240648199,-500.0,0.00021917,3]
[349507944,1737240648211,-500.0,0.00021917,3]
[349507945,1737240648222,-151.0,0.00021917,2]
[349507946,1737240648233,-151.0,0.00021917,2]
[349507947,1737240648244,-500.0,0.00021917,3]
[349507948,1737240648256,-500.0,0.00021917,3]
[349507949,1737240648266,-500.0,0.00021917,3]
[349507950,1737240648277,-572.44,0.00021917,3]
[349507951,1737240648288,-500.0,0.00021917,3]
[349507952,1737240648299,-500.0,0.00021917,3]
[349507953,1737240648310,-500.0,0.00021917,3]
[349507954,1737240648321,-500.0,0.00021917,3]
[349507955,1737240648332,-151.0,0.00021917,2]
[349507956,1737240648344,-500.0,0.00021917,3]
[349507957,1737240648355,-151.0,0.00021917,2]
[349507958,1737240648512,-500.0,0.00021917,3]
[349507959,1737240648522,-151.0,0.00021917,2]
[349507960,1737240648532,-152.961963,0.00021917,2]
[349507961,1737240648541,-500.0,0.00021917,3]
[349507962,1737240648551,-500.0,0.00021917,3]
[349507963,1737240648561,-500.0,0.00021917,3]
[349507964,1737240648571,-151.0,0.00021917,2]
[349507965,1737240648580,-151.0,0.00021917,2]
[349507966,1737240648590,-300.817269,0.00021917,2]
[349507967,1737240648600,-500.0,0.00021917,3]
[349507968,1737240648609,-504.36668707,0.00021917,3]
[349507969,1737240648619,-500.0,0.00021917,3]
[349507970,1737240648628,-500.0,0.00021917,3]
[349507971,1737240648639,-151.0,0.00021917,2]
[349507972,1737240648649,-151.0,0.00021917,2]
[349507973,1737240648659,-500.0,0.00021917,3]
[349507974,1737240648669,-151.0,0.00021917,2]
[349507975,1737240648679,-151.0,0.00021917,2]
[349507976,1737240648689,-151.0,0.00021917,2]
[349507977,1737240648698,-151.0,0.00021917,2]
[349507978,1737240648707,-257.16,0.00021917,3]
[349507979,1737240648717,-443.32,0.00021917,3]
[349507980,1737240648727,-500.0,0.00021949,2]
[349507981,1737240648737,-152.5,0.00021949,2]
[349507982,1737240648747,-443.6166946,0.00021949,2]
[349507983,1737240648757,-500.0,0.00021949,2]
[349507984,1737240648766,-500.0,0.00021949,2]
[349507985,1737240648775,-500.0,0.00021949,2]
[349507986,1737240648785,-500.0,0.00021949,2]
[349507987,1737240648796,-500.0,0.00021949,2]
[349507988,1737240648806,-500.0,0.00021949,2]
[349507989,1737240648816,-500.0,0.00021949,2]
[349507990,1737240648826,-500.0,0.00021949,2]
[349507991,1737240648835,-500.0,0.00021949,2]
[349507992,1737240648845,-500.0,0.00021949,2]
[349507993,1737240648855,-500.0,0.00021949,2]
[349507994,1737240648865,-500.0,0.00021949,2]
[349507995,1737240648875,-500.0,0.00021949,2]
[349507996,1737240648885,-635.00687836,0.00021949,2]
[349507997,1737240648895,-500.0,0.00021949,2]
[349507998,1737240648905,-500.0,0.00021949,2]
[349507999,1737240648915,-500.0,0.00021949,2]
[349508000,1737240648925,-500.0,0.00021949,2]
[349508001,1737240648935,-500.0,0.00021949,2]
[349508002,1737240648945,-500.0,0.00021949,2]
[349508003,1737240648955,-500.0,0.00021949,2]
[349508004,1737240648965,-500.0,0.00021949,2]
[349508005,1737240648975,-500.0,0.00021949,2]
[349508006,1737240648984,-500.0,0.00021949,2]
[349508007,1737240648994,-500.0,0.00021949,2]
[349508008,1737240649004,-343.55242089,0.00021949,2]
[349508009,1737240649013,-500.0,0.00021949,2]
[349508010,1737240649023,-500.0,0.00021949,2]
[349508011,1737240649032,-500.0,0.00021949,2]
[349508012,1737240649042,-500.0,0.00021949,2]
[349508013,1737240649051,-500.0,0.00021949,2]
[349508014,1737240649061,-500.0,0.00021949,2]
[349508015,1737240649070,-500.0,0.00021949,2]
[349508016,1737240649080,-500.0,0.00021949,2]
[349508017,1737240649089,-500.0,0.00021949,2]
[349508018,1737240649099,-500.0,0.00021949,2]
[349508019,1737240649109,-166.00822126,0.00021949,2]
[349508020,1737240649119,-500.0,0.00021949,2]
[349508021,1737240649128,-182.01676672,0.00021949,2]
[349508022,1737240649138,-564.870165,0.00021949,7]
[349508023,1737240649147,-564.870165,0.00021949,7]
[349508024,1737240649158,-151.0,0.00021949,7]
[349508025,1737240649170,-151.0,0.00021949,7]
[349508026,1737240649180,-151.0,0.00021949,7]
[349508027,1737240649190,-151.0,0.00021949,7]
[349508028,1737240649200,-151.0,0.00021949,7]
[349508029,1737240649210,-151.0,0.00021949,7]
[349508030,1737240649220,-817802.11072961,0.0002195,18]
[349508031,1737240659339,1829.53928536,0.00024,120]
[349508032,1737240683768,166.240962,0.00013973,2]
[349508033,1737240690732,160.0,0.00023297,120]
[349508034,1737240810785,160.0,0.00023319,120]
[349508036,1737240930817,160.0,0.00022861,120]
[349508037,1737241050751,160.0,0.00023666,120]
[349508038,1737241110762,160.0,0.00023555,120]
[349508039,1737241114069,2010.98,0.00024,120]
[349508041,1737241646129,-575.5785508,0.00019552,2]
[349508042,1737241646154,-74.88970701,0.0001985,2]
[349508043,1737241659228,166.040112,0.00013973,2]
[349508078,1737241833017,-166.891748,0.00020176,2]
[349508079,1737241833027,-500.0,0.0002018,2]
[349508080,1737241833036,-194.1822243,0.00020334,2]
[349508081,1737241833046,-1228.7013447,0.00020361,2]
[349508082,1737241833056,-1868.0,0.00020437,2]
[349508083,1737241833066,-373.294,0.000209,2]
[349508084,1737241833076,-300.0,0.00020918,2]
[349508085,1737241833086,-20389.3842642,0.00020919,2]
[349508087,1737241833096,-151.96938587,0.00021817,2]
[349508089,1737241833106,-182.32714222,0.00021873,2]
[349508090,1737241833116,-154.356,0.000219,2]
[349508091,1737241833127,-482.41519459,0.000219,2]
[349508092,1737241833136,-500.0,0.00021917,3]
[349508093,1737241833146,-500.0,0.00021917,3]
[349508094,1737241833156,-500.0,0.00021917,3]
[349508095,1737241833166,-445.25638769,0.00021917,3]
[349508096,1737241833175,-500.0,0.00021917,3]
[349508097,1737241833185,-500.0,0.00021917,3]
[349508098,1737241833194,-500.0,0.00021917,3]
[349508099,1737241833204,-500.0,0.00021917,3]
[349508100,1737241833213,-500.0,0.00021917,3]
[349508101,1737241833223,-500.0,0.00021917,3]
[349508102,1737241833232,-509.79613844,0.00021917,3]
[349508103,1737241833242,-505.34573248,0.00021917,3]
[349508104,1737241833253,-496.27894429,0.00021917,3]
[349508105,1737241833263,-503.97334849,0.00021917,3]
[349508106,1737241833273,-500.0,0.00021917,3]
[349508107,1737241833282,-598.95,0.00021917,3]
[349508108,1737241833292,-500.0,0.00021917,3]
[349508109,1737241833301,-500.0,0.00021917,3]
[349508110,1737241833310,-500.0,0.00021917,3]
[349508111,1737241833320,-500.0,0.00021917,3]
[349508112,1737241833329,-500.0,0.00021917,3]
[349508113,1737241833339,-500.0,0.00021917,3]
[349508114,1737241833348,-500.0,0.00021917,3]
[349508115,1737241833357,-1855.43,0.00021917,3]
[349508116,1737241833367,-500.0,0.00021917,3]
[349508117,1737241833378,-500.0,0.00021917,3]
[349508118,1737241833388,-500.0,0.00021917,2]
[349508119,1737241833397,-500.0,0.00021917,2]
[349508120,1737241833407,-500.0,0.00021917,3]
[349508121,1737241833417,-500.0,0.00021917,3]
[349508122,1737241833426,-756.29,0.00021917,3]
[349508123,1737241833436,-500.0,0.00021917,3]
[349508124,1737241833445,-500.0,0.00021917,3]
[349508125,1737241833454,-445.99,0.00021917,3]
[349508126,1737241833467,-500.0,0.00021917,3]
[349508127,1737241833480,-500.0,0.00021917,3]
[349508128,1737241833492,-2992.97,0.00021917,3]
[349508129,1737241833506,-500.0,0.00021917,3]
[349508130,1737241833519,-200.0,0.00021917,2]
[349508131,1737241833530,-500.0,0.00021917,3]
[349508132,1737241833544,-500.0,0.00021917,3]
[349508133,1737241833555,-252.08,0.00021917,3]
[349508134,1737241833565,-549.77,0.00021917,3]
[349508135,1737241833576,-330.32338955,0.00021917,3]
[349508136,1737241833589,-211.07,0.00021917,3]
[349508137,1737241833600,-500.0,0.00021917,3]
[349508138,1737241833613,-501.94033345,0.00021917,3]
[349508139,1737241833627,-500.0,0.00021917,3]
[349508140,1737241833638,-500.0,0.00021917,3]
[349508141,1737241833649,-500.0,0.00021917,3]
[349508142,1737241833662,-425.28,0.00021917,3]
[349508143,1737241833678,-608.20967079,0.00021917,3]
[349508144,1737241833689,-500.0,0.00021917,3]
[349508145,1737241833702,-500.0,0.00021917,3]
[349508146,1737241833714,-500.0,0.00021917,3]
[349508147,1737241833724,-500.0,0.00021917,3]
[349508148,1737241833736,-255.0,0.0002194,6]
[349508149,1737241833747,-31148.18927039,0.0002195,18]
[349508150,1737241833758,-266.9737752,0.00021973,2]
[349508151,1737241833768,-350.19042805,0.00021973,2]
[349508152,1737241833778,-237.7845278,0.00021973,2]
[349508153,1737241833788,-552.616121,0.00021973,2]
[349508154,1737241833799,-212.21623005,0.00021973,2]
[349508155,1737241833810,-151.16979149,0.00021973,2]
[349508156,1737241833823,-552.11752573,0.00021999,2]
[349508157,1737241833833,-237.22298648,0.00021999,2]
[349508158,1737241833845,-649.28360232,0.00021999,2]
[349508159,1737241833855,-500.0,0.00021999,2]
[349508160,1737241833867,-500.0,0.00021999,2]
[349508161,1737241833878,-240.66758014,0.00021999,2]
[349508162,1737241833890,-23650.98465752,0.00022,5]
[349508163,1737241833902,-1421.54115157,0.00022,5]
[349508164,1737241833914,-82246.45750326,0.00022,15]
[349508165,1737241833929,-30408.04614958,0.00022,15]
[349508166,1737241833943,-40678.85195004,0.00022,15]
[349508179,1737241838802,-204.25270491,0.000219,3]
[349508180,1737241838813,-279753.29559891,0.00022,15]
[349508181,1737241838825,-10969.271389,0.00022,15]
[349508182,1737241838837,-491.1148829,0.00022,15]
[349508183,1737241838909,-3966.36441773,0.00022,15]
[349508188,1737241843876,-804.82261135,0.00022,15]
[349508201,1737242460297,165.616949,0.00013973,2]
[349508203,1737242500138,200.0,0.00016,2]
[349508204,1737242587736,10000.0,0.000167,2]
[349508205,1737242598272,818.38783519,0.00024,120]
[349508206,1737242604718,278.185,0.000167,2]
[349508220,1737242826298,-965.04682578,0.00017998,2]
[349508230,1737242950096,-1095.58389544,0.00017998,2]
[349508231,1737242950117,-1655.13878809,0.0001818,2]
[349508232,1737242950138,-130.00451553,0.000189,2]
[349508233,1737242971141,-268.40137609,0.00017818,2]
[349508234,1737242971163,-979.2330597,0.000189,2]
[349508235,1737242971186,-155.13878809,0.00019504,2]
[349508321,1737243037966,-500.0,0.0002018,2]
[349508322,1737243037976,-217.532402,0.00020527,2]
[349508323,1737243037986,-377.435,0.000209,2]
[349508324,1737243037996,-6982.65107586,0.000219,2]
[349508325,1737243038013,-17.34892414,0.000219,2]
[349508326,1737243038022,-404.13517671,0.000219,3]
[349508327,1737243038032,-78.51589915,0.000219,3]
[349508342,1737243040571,-126.34621159,0.000219,3]
[349508344,1737243040581,-928.09554649,0.00021909,2]